Cogmind - Beta 15 @@@ ROGUE MODE // 2025.05.08 @ 16:22:10 Player: Skysub Result: Self-destructed Performance ------------- Evolutions (1) 500 Regions Visited (2) 400 Robots Destroyed (32) 160 Value Destroyed (568) 568 Prototype IDs (0) 0 Alien Tech Used (0) 0 Bonus (0) 0 TOTAL SCORE: 1628 Bonus ------- None Cogmind --------- Core Integrity 350/400 Matter 201/300 Energy 265/265 System Corruption 4% Temperature Warm (198) Movement Core (450) Ox8 Location -9/Materials Parts ------- > --- POWER (1) -------- Reinforced Ion Engine > --- PROPULSION (2) --- (None) > --- UTILITY (4) ------ Small Storage Unit Signal Interpreter Terrain Scan Processor Medium Armor Plating > --- WEAPON (2) ------- Light Assault Rifle Heavy Assault Rifle > --- INVENTORY (8) ---- Light Treads Light Treads Sensor Array Hacking Suite Light Assault Rifle Grenade Launcher Mining Laser Mace Peak State ------------ > --- POWER ------------ Ion Engine > --- PROPULSION ------- Wheel Compact Wheel > --- UTILITY ---------- Small Storage Unit Structural Scanner Improved Terrain Scanner Terrain Scan Processor > --- WEAPON ----------- Light Assault Rifle Mace > --- INVENTORY -------- Light Treads Light Treads Wheel Medium Armor Plating Hacking Suite Light Assault Rifle Grenade Launcher Mining Laser [Rating: 14] Favorites ----------- Power Ion Engine Engine Ion Engine Propulsion Compact Wheel Wheel Compact Wheel Utility Small Storage Unit Device Improved Terrain Scanner Storage Small Storage Unit Processor Terrain Scan Processor Protection Medium Armor Plating Weapon Light Assault Rifle Energy Gun Small Laser Ballistic Gun Light Assault Rifle Special Weapon Mining Laser Impact Weapon Mace Build | -11 -10 -9 ------- Run | Yrd Mat Mat Slots Evolved 2 | . . 2 Power . | . . . Propulsion . | . . . Utility 2 | . . 2 Weapon . | . . . Parts Attached 25 | 7 10 8 Power 5 | 1 3 1 Engine 5 | 1 3 1 Core . | . . . Reactor . | . . . Propulsion 4 | 2 2 . Treads . | . . . Leg . | . . . Wheel 4 | 2 2 . Hover . | . . . Flight . | . . . Utility 7 | 2 1 4 Device 2 | 1 1 . Storage 1 | 1 . . Processor 3 | . . 3 Hackware . | . . . Protection 1 | . . 1 Artifact . | . . . Weapon 9 | 2 4 3 Energy Gun 1 | . 1 . Energy Cannon . | . . . Ballistic Gun 6 | 2 3 1 Ballistic Cannon . | . . . Launcher . | . . . Special Weapon 1 | . . 1 Impact Weapon 1 | . . 1 Slashing Weapon . | . . . Piercing Weapon . | . . . Special Melee Weapon . | . . . Unidentified Prototypes . | . . . Parts Lost 9 | . 5 4 Power 3 | . 3 . Propulsion 2 | . . 2 Utility 2 | . . 2 Weapon 2 | . 2 . Highest Loss Streak 2 | . 2 2 To Critical Strikes . | . . . Average Backups 6 | 3 7 7 Power . | . . . Propulsion 2 | 1 2 2 Utility 2 | . 2 2 Weapon 1 | . 1 3 Tool/Special . | . . . Unused Backups 10 | . 4 6 Power . | . . . Propulsion 3 | . . 3 Utility 6 | . 4 2 Weapon 1 | . . 1 Tool/Special . | . . . Average Slot Usage (%) 96 | . 96 94 Engine 12 | . 12 11 Wheel 25 | . 28 18 Device 12 | . 14 8 Storage 13 | . 14 11 Processor 4 | . . 16 Protection 1 | . . 5 Ballistic Gun 24 | . 26 19 Peak Build Rating 14 | 9 10 14 Average Rating 9 | 5 8 12 On Entrance 5 | . 9 8 Naked Turns . | . . . Heaviest Build 26 | 11 13 26 Greatest Support 32 | 32 32 26 Greatest Overweight (x) 1 | . . 1 Average Overweight (x) . | . . . Largest Inventory Capacity 8 | 8 8 8 Average Capacity 7 | 7 8 8 Most Carried 8 | 5 8 8 Average Carried 6 | 3 7 7 Final Capacity 8 | 8 8 8 Final Carried 8 | 5 8 8 Class Distribution -------------------- 60% | Mutant 35% | Scavenger-Mutant 3% | Scavenger-Skirmisher Dominant Class ---------------- Mutant | -10/Materials Scavenger-Mutant | -9/Materials Resources | -11 -10 -9 ----------- Run | Yrd Mat Mat Matter Collected 607 | 300 190 117 Remotely . | . . . Salvage Created 1043 | 175 560 308 Parts 79 | 12 48 19 Haulers Intercepted 1 | . . 1 Recyclers Shooed 6 | 1 2 3 Parts Field Recycled . | . . . Retrieved Matter . | . . . Parts Self-Destructed . | . . . Prevented . | . . . Kills | -11 -10 -9 ------- Run | Yrd Mat Mat Combat Hostiles Destroyed 19 | . 15 4 Guns 19 | . 15 4 Classes Destroyed 10 | 2 5 3 Worker 1 | . 1 . Builder 3 | . 3 . Tunneler 4 | 4 . . Hauler 1 | . . 1 Recycler 3 | 1 1 1 Operator 1 | . 1 . Swarmer 8 | . 8 . Grunt 8 | . 7 1 Brawler 1 | . . 1 Sentry 2 | . . 2 Best Kill Streak 3 | 2 3 3 Combat Bots Only 3 | . 3 2 Max Kills in Single Turn 1 | 1 1 1 Gunslinging . | . . . Exploded . | . . . Melee . | . . . Uniques/NPCs Destroyed . | . . . Combat | -11 -10 -9 -------- Run | Yrd Mat Mat Hostile Shots Fired 129 | . 99 30 Missed 32 | . 27 5 Hits 97 | . 72 25 Melee 3 | . . 3 Projectile 94 | . 72 22 Damage Taken 1048 | . 671 377 Core 258 | . 208 50 Absorbed by Shields . | . . . Core Remaining (%) 58 | 100 16 . Volleys Fired 138 | 15 88 35 Largest 2 | 2 2 2 Hottest 43 | 40 40 43 Shots Fired 232 | 30 148 54 Gun 232 | 30 148 54 Cannon . | . . . Launcher . | . . . Special . | . . . Kinetic 232 | 30 148 54 Thermal . | . . . Explosive . | . . . Electromagnetic . | . . . Robot Hit Streak 18 | 11 18 14 Robot Miss Streak 4 | 1 4 1 Penetration Max . | . . . Secondary Targets 2 | . 1 1 Max Gunslinging Chain 1 | . 1 1 Shots Hit Robots 162 | 24 92 46 Core Hits 64 | 9 40 15 Critical Kills 3 | . 3 . Critical Parts Destroyed 1 | . 1 . Critical Strikes 4 | . 4 . Destroy 4 | . 4 . Melee Attacks 1 | . . 1 Impact 1 | . . 1 Slashing . | . . . Piercing . | . . . Sneak Attacks . | . . . Combat Hostiles . | . . . Follow-up Attacks . | . . . Damage Inflicted 1420 | 194 768 458 Guns 1420 | 194 768 458 Cannons . | . . . Explosions . | . . . Melee . | . . . Ramming . | . . . Kinetic 1420 | 194 768 458 Thermal . | . . . Explosive . | . . . Electromagnetic . | . . . Impact . | . . . Slashing . | . . . Piercing . | . . . Highest Corruption 4 | . 3 4 Average Corruption 2 | . 1 4 Corruption Purged . | . . . Corruption Blocked . | . . . Effects 7 | . 5 2 Message Errors 1 | . 1 . Matter Fused 2 | . 2 . Heat Flow Errors 1 | . . 1 Energy Discharges 2 | . 2 . Weapon Failures 1 | . . 1 Overload Shots . | . . . Overflow Damage . | . . . Projectiles . | . . . Explosions . | . . . Melee . | . . . Knockbacks . | . . . Impact . | . . . Kinetic . | . . . Secondary . | . . . Self-Inflicted Damage . | . . . Shots . | . . . Rammed . | . . . Targets Rammed . | . . . Kicked . | . . . Crushed . | . . . Highest Temperature 284 | . 12 284 Average Temperature 44 | . 6 68 Received Heat Transfer 270 | . 162 108 Effects 3 | . . 3 Interference 3 | . . 3 Siege Activations . | . . . Martial Activations . | . . . Shielding Activations . | . . . Robots Disrupted . | . . . Combat Hostiles . | . . . Robots Corrupted . | . . . Combat Hostiles . | . . . Parts Fried . | . . . Impact Corruptions . | . . . Robots Melted . | . . . Combat Hostiles . | . . . Parts Melted . | . . . Heat Transferred . | . . . Parts Sabotaged . | . . . Parts Stolen . | . . . Parts Stripped . | . . . Power Chain Reactions . | . . . Alert | -11 -10 -9 ------- Run | Yrd Mat Mat Maximum Alert Level . | . . . Low Security (%) 100 | 100 100 100 Level 1 . | . . . Level 2 . | . . . Level 3 . | . . . Level 4 . | . . . Level 5 . | . . . High Security . | . . . Max Security . | . . . Peak Influence 70 | 10 70 35 Initial 14 | . . 14 Average 22 | 1 30 13 Influence Increases 591 | 25 414 152 Destroy 0b10 Robot/C 380 | . 300 80 Destroy 0b10 Robot/NC 65 | 25 30 10 Destroy Leader 82 | . 50 32 Successful Hack 19 | . 19 . Disable Machine 15 | . . 15 Lose Combat Pursuer 30 | . 15 15 Influence Decreases 561 | 25 378 158 Entered New Map 22 | . . 22 Time Decay 406 | 25 275 106 Lost Part 76 | . 46 30 Purge Threat 57 | . 57 . Squads Dispatched 5 | . 2 3 Investigation 3 | . 1 2 Extermination . | . . . Reinforcement 2 | . 1 1 Assault . | . . . Garrison . | . . . Intercept . | . . . Searches Triggered . | . . . Construction Impeded . | . . . Haulers Reinforced . | . . . Active Scanning Responses . | . . . Cargo Convoy Interrupts . | . . . Stealth | -11 -10 -9 --------- Run | Yrd Mat Mat Distress Signals 4 | . 3 1 Communications Jammed . | . . . Distress Signals . | . . . Times Spotted 33 | . 23 10 Peak Tracking Total 5 | . 5 3 Tactical Retreats 2 | . 1 1 Traps | -11 -10 -9 ------- Run | Yrd Mat Mat Traps Triggered 2 | . 2 . Indirectly . | . . . Trap Hack Attempts . | . . . Triggered . | . . . Disarmed . | . . . Reprogrammed . | . . . Reused . | . . . Traps Extracted . | . . . Installed . | . . . Triggered . | . . . Machines | -11 -10 -9 ---------- Run | Yrd Mat Mat Machines Disabled 1 | . . 1 Max in Single Turn 1 | . . 1 Machines Repaired . | . . . Machines Dismantled . | . . . Machines Sabotaged . | . . . Overloaded Fab Kills . | . . . Hacking | -11 -10 -9 --------- Run | Yrd Mat Mat Machines Accessed 6 | . 4 2 Terminals 6 | . 4 2 Fabricators . | . . . Repair Stations . | . . . Recycling Units . | . . . Scanalyzers . | . . . Garrison Access . | . . . Total Hacks 16 | . 12 4 Successful 4 | . 4 . Failed 12 | . 8 4 Catastrophic 2 | . . 2 Database Lockouts . | . . . Manual 10 | . 7 3 Terminals 16 | . 12 4 Fabricators . | . . . Repair Stations . | . . . Recycling Units . | . . . Scanalyzers . | . . . Garrison Access . | . . . Terminal Hacks 2 | . 2 . Unreport Threat 1 | . 1 . Hauler Manifests 1 | . 1 . Fabricator Hacks . | . . . Repair Station Hacks . | . . . Recycling Unit Hacks . | . . . Scanalyzer . | . . . Garrison Access Hacks . | . . . Unauthorized Hacks 2 | . 2 . Terminals 2 | . 2 . Botnet 2 | . 2 . Fabricators . | . . . Repair Stations . | . . . Recycling Units . | . . . Scanalyzers . | . . . Garrison Access . | . . . Data Cores Recovered . | . . . Used . | . . . Hacking Detections 6 | . 4 2 Full Trace Events 3 | . 1 2 Feedback Events . | . . . Feedback Blocked . | . . . Robot Schematics Acquired . | . . . Robots Built . | . . . Authchips . | . . . Time . | . . . Total Robot Build Rating . | . . . Part Schematics Acquired . | . . . Parts Built . | . . . Authchips . | . . . Time . | . . . Total Part Build Rating . | . . . Parts Repaired . | . . . Time . | . . . Parts Recycled . | . . . Recycled Matter . | . . . Retrieved Matter . | . . . Retrieved Components . | . . . Parts Scanalyzed . | . . . Part Schematics Acquired . | . . . Parts Damaged . | . . . Bothacking | -11 -10 -9 ------------ Run | Yrd Mat Mat Used RIF Installer . | . . . Robots Hacked . | . . . Non-combat . | . . . Combat . | . . . Robot Hacks Applied . | . . . Relay Couplers Released . | . . . Fabnet Peak Effective % . | . . . Robots Rewired . | . . . Allies Hacked . | . . . Hacks Repelled . | . . . Allies | -11 -10 -9 -------- Run | Yrd Mat Mat Total Allies . | . . . Largest Group . | . . . Highest-Rated Group . | . . . Highest-Rated Ally . | . . . Total Orders . | . . . Ally Attacks . | . . . Total Damage . | . . . Kills . | . . . Allies Corrupted . | . . . Allies Melted . | . . . Intel | -11 -10 -9 ------- Run | Yrd Mat Mat Active Infowar (turns) 818 | 14 673 131 Terrain 539 | 14 394 131 Structural 346 | . 279 67 Robot Analysis Total . | . . . Derelict Logs Recovered . | . . . Drone Launches . | . . . Drone Recoveries . | . . . Exploration | -11 -10 -9 ------------- Run | Yrd Mat Mat Turns Passed 1067 | 131 673 263 Spaces Moved 622 | 75 393 154 Core 3 | 3 . . Treads . | . . . Legs . | . . . Wheels 619 | 72 393 154 Hover . | . . . Flight . | . . . Fastest Speed 50 | 50 90 90 Average Speed 98 | 98 98 97 Slowest Speed 115 | 100 100 115 Overloaded Moves . | . . . Propulsion Burnouts . | . . . Robots Hopped . | . . . Potential Cave-ins . | . . . Cave-ins Triggered . | . . . Exploration Rate (%) 34 | 4 79 21 Regions Visited 2 Branch Regions . Pre-discovered Areas . | . . . Known Exits Taken . | . . . Unknown Exits Taken 2 | 1 1 . Scrap Searched . | . . . Spaces Dug . | . . . Terrain Destroyed . | . . . Melee . | . . . Projectile . | . . . AOE . | . . . Terrain Rammed . | . . . Walls Destroyed . | . . . Machines Disabled . | . . . Actions | -11 -10 -9 --------- Run | Yrd Mat Mat Total 879 | 104 560 215 Wait 66 | 3 54 9 Move 620 | 74 392 154 Hop . | . . . Pick Up 16 | 5 8 3 Fast Attach 14 | 7 5 2 Attach 4 | . 1 3 Detach . | . . . Swap 9 | . 4 5 Drop 11 | . 8 3 Fire 138 | 15 88 35 Melee 1 | . . 1 Ram . | . . . Kick . | . . . Crush . | . . . Escape Stasis . | . . . Rewire . | . . . Trap . | . . . Miscellaneous . | . . . Route ------- -11/Scrapyard -10/Materials (discovered 3 exits: *Mat x2 / [*Min]) -9/Materials History --------- Turn | Location | Event 9 | -11/Scrapyard | Discovered new exit (range 15) 132 | -11/Scrapyard | Entered Materials 286 | -10/Materials | Discovered new exit (range 16) 318 | -10/Materials | Build established: Mutant 443 | -10/Materials | Core integrity fell below 50% 606 | -10/Materials | Discovered new exit (range 15) 755 | -10/Materials | Core integrity fell below 20% 759 | -10/Materials | Discovered new exit (range 14) 805 | -10/Materials | Entered another Materials area 805 | -9/Materials | Evolved 2 slots: Utility x2 1068 | -9/Materials | Self-destructed Last Messages --------------- Current location identified: Materials ALERT: Suspicious activity at Terminal M005. Dispatching Investigation squad. U-05 Engineer works on Pressure Siphon. Connecting with Terminal... ALERT: Suspicious activity at Terminal M002. Dispatching Investigation squad. U-05 Engineer works on Pressure Siphon. ALERT: Hostiles spotted, dispatching reinforcements to Terminal M011. U-05 Engineer works on Pressure Siphon. W-16 Scout sends out distress signal. System corrupted: Heat flow error (+290). Overheating: System interference. Lgt. Assault Rifle temporarily disabled. Com. Wheel destroyed. Y-45 Defender destroyed. Overheating: System interference. Hvy. Assault Rifle temporarily disabled. Signal Interpreter temporarily disabled. Map ----- +----------------------------------------------------+ | ?????????????????????????????????????????????????? | | ?????????????????????????????????????????????????? | | ?????????????????????????????????????????????????? | | ?????????????????????????????????????????????????? | | ?????????????????????????????????????????????????? | | ?????????????????????????????????????????????????? | | ?????????????????????????????????????????????????? | | ?????????????????????????????????????????????????? | | ?????????????????????????????????????????????????? | | ?????????????????????????????????????????????????? | | ?????????????????????????????????????????????????? | | ?????????????????????????????????????????????????? | | ?????????????????????????????????????????????????? | | ?????????????????????????????????????????????????? | | ?????????????????????????????????????????????????? | | ?????????????????????????????????????????????????? | | ???????????????########??????????????????????????? | | ???????????????# #??????????????????????????? | | ???????????????# """ !#??????????????????????????? | | ???????????????# "Y" #??????????????????????????? | | ???????????????# #??????????????????????????? | | ???????????????# #??????????????????????????? | | ????????????????? ???????????????????????????? | | +##################/####?????????????????????????? | | """ r ######## ????????? | | "T" @ [%!! #????????????? | | ##########+???????????????? | | #### ^ ########????????????????????????#? | | ?????# ^ ^ #???????????????????????????? ? ?# | | ?????# "" #??????????????????????????? ???? | | ?????# "" #???????????????????????????##?#?? | | ?????# ! "" ! #????????#?????????"?#???###???##? | | ?????# #????????????????????? ?##??#??#? | | ?????# #?????##????? ?? ? ??? ??? ?? ? | | ?????######## #########????????#???# ??#???? ? | | ?????# T # # ##????? ?#### ??? #???""? | | ?????# # # "T" #?? ??? ??? ?#?"??""? | | ?????#""" + + #?????? ?? ?? + """"" | | ?????#""" # # #????? ?? ? # "?"??? | | ?????#""" # # #?#?? #??#? ?? # ??"? ? | | ?????# ?# ####/####??? ############ | | ?????######?# #??# ####### ################### | | ????????????# #### # # !% | | ????????????# + # | | ????????????# ####### # + | | ????????????# ########+####### # | | ????????????# # % = # # = | | ???????????? ## """" # ## | | ????????????###### ]!!=*""S"" ################ | | ?????????????????# ]!=% "" "" ###### # | +----------------------------------------------------+ Best States ------------- Heat Dissipation 28 Energy Generation 12 Energy Capacity 265 Matter Stores 300 Matter Capacity 300 Sight Range 16 Terrain Scan Range 16 Terrain Scan Density 85 Armor Coverage 225 Evasion (%) 42 Item Schematics ----------------- None Robot Schematics ------------------ None Fabricated ------------ Nothing Repaired ---------- Nothing Alien Tech Used ----------------- None Achievements -------------- None Challenges ------------ None Game ------ Seed RagnarokJammingPick Manual? 0 Play Time 00:16:50 Cumulative 66.2 hours Start 2025.05.08 @ 15:37:50 End 2025.05.08 @ 16:22:10 Sessions 2 Manual Loads 0 Difficulty Rogue Special Mode None Game No. 58 Rogue 58 Adventurer 0 Explorer 0 Win Type - Total 1 Types 1/0/0/0/0/0/0/0/0/0 Lore% 38 Gallery% 45 Achievement% 42 Wizard Run 0 Options --------- Layout 1 ASCII 0 Keyboard 1 Movement Numpad Keybinds 0 Fullscreen 1 Font 32/SmallcapsGlow Map View 50x35 Zoom Use 0% Tactical HUD 0 Map Filters NONE Filters NONE Steam 1 RUN: 3eb07bf7-50c5-44fd-9af8-32fc6c17453d